bitfinex-derivatives/quotes_BTCF0:USTF0_20250620
["timestamp","ask_amount","ask_price","bid_price","bid_amount"]
[1750439542126,0.13,103610.0,103600.0,2.43919069]
[1750439543125,0.132,103610.0,103600.0,1.68815069]
[1750439543430,0.132,103610.0,103600.0,2.43915069]
[1750439544127,0.132,103610.0,103600.0,1.68815069]
[1750439544327,0.132,103610.0,103600.0,2.43915069]
[1750439544528,0.132,103610.0,103600.0,2.43911069]
[1750439544830,0.13,103610.0,103600.0,2.44711069]
[1750439545032,0.13,103610.0,103600.0,2.50891069]
[1750439545331,0.13,103610.0,103600.0,2.51776717]
[1750439547126,0.13,103610.0,103600.0,2.81326717]
[1750439550137,0.13,103610.0,103600.0,2.41574948]
[1750439550328,0.13,103610.0,103600.0,2.81326717]
[1750439550734,0.13,103610.0,103600.0,2.81366717]
[1750439551541,0.13,103610.0,103600.0,2.41614948]
[1750439551741,0.13,103610.0,103600.0,2.81366717]
[1750439553538,0.15446623,103610.0,103600.0,2.81366717]
[1750439555743,0.15446623,103610.0,103600.0,2.81326717]
[1750439555946,0.15446623,103610.0,103600.0,2.81366717]
[1750439556651,0.15446623,103610.0,103600.0,2.41614948]
[1750439556855,0.15446623,103610.0,103600.0,2.81366717]
[1750439557041,0.20119348,103610.0,103600.0,1.99670717]
[1750439557351,0.38689348,103610.0,103600.0,2.74746717]
[1750439557651,0.57990808,103610.0,103600.0,2.74746717]
[1750439558345,0.49294185,103610.0,103600.0,2.74746717]
[1750439558550,0.89045954,103610.0,103600.0,1.000973]
[1750439558848,0.89045954,103610.0,103600.0,1.120573]
[1750439559057,0.89045954,103610.0,103600.0,0.825473]
[1750439559251,0.9149268,103610.0,103600.0,0.825473]
[1750439559746,0.9149268,103610.0,103600.0,0.464673]
[1750439559946,0.9169268,103610.0,103600.0,0.460673]
[1750439560245,0.9169268,103610.0,103600.0,0.456673]
[1750439562653,0.9169268,103610.0,103600.0,0.817473]
[1750439562859,0.51940911,103610.0,103600.0,1.21499069]
[1750439563157,0.51940911,103610.0,103600.0,0.85419069]
[1750439563551,0.51940911,103610.0,103600.0,0.456673]
[1750439563952,0.51940911,103610.0,103600.0,0.85419069]
[1750439564549,0.51940911,103610.0,103600.0,0.456673]
[1750439564857,1.33473558,103610.0,103600.0,0.456673]
[1750439565252,1.33473558,103610.0,103600.0,0.456273]
[1750439565454,1.33473558,103610.0,103600.0,0.456673]
[1750439565655,1.34365732,103610.0,103600.0,0.456673]
[1750439565960,1.33473558,103610.0,103600.0,0.456673]
[1750439566159,1.2777268,103610.0,103600.0,0.456673]
[1750439566864,1.2777268,103610.0,103600.0,0.313433]
[1750439567158,1.2777268,103610.0,103600.0,0.456553]
[1750439567659,1.08334257,103610.0,103600.0,0.456553]
[1750439567855,1.14334257,103610.0,103600.0,0.456553]
[1750439568657,0.74582488,103610.0,103600.0,0.456553]
[1750439568864,0.38502488,103610.0,103600.0,0.817353]
[1750439569055,0.38502488,103610.0,103600.0,1.21487069]
[1750439569554,0.38502488,103610.0,103600.0,0.817353]
[1750439569954,0.38502488,103610.0,103600.0,0.456553]
[1750439570658,0.38502488,103610.0,103600.0,0.817353]
[1750439570859,0.45142488,103610.0,103600.0,0.817353]
[1750439571961,0.45142488,103610.0,103600.0,0.456553]
[1750439572155,0.45142488,103610.0,103600.0,0.817353]
[1750439573155,0.45142488,103610.0,103600.0,0.456553]
[1750439573457,0.45142488,103610.0,103600.0,0.817353]
[1750439574060,0.45142488,103610.0,103600.0,1.21487069]
[1750439574453,0.84894257,103610.0,103600.0,0.817353]
[1750439574658,0.84894257,103610.0,103600.0,0.456553]
[1750439575162,0.45142488,103610.0,103600.0,0.456553]
[1750439575461,0.45142488,103610.0,103600.0,0.817353]
[1750439575960,0.45142488,103610.0,103600.0,1.21487069]
[1750439576156,1.00258641,103610.0,103600.0,1.28127069]
[1750439576363,1.04931366,103610.0,103600.0,1.40877069]
[1750439576962,1.04931366,103610.0,103600.0,1.34297069]
[1750439577762,1.04931366,103610.0,103600.0,0.945453]
[1750439577964,0.44203366,103610.0,103600.0,1.34297069]
[1750439578661,0.44203366,103610.0,103600.0,1.28127069]
[1750439578964,0.90285135,103610.0,103600.0,0.674233]
[1750439579166,0.90285135,103610.0,103600.0,0.817353]
[1750439579464,0.90285135,103610.0,103600.0,0.456553]
[1750439580663,0.50533366,103610.0,103600.0,0.456553]
[1750439582671,0.90285135,103610.0,103600.0,0.456553]
[1750439583468,0.90285135,103610.0,103600.0,0.521453]
[1750439583665,0.50533366,103610.0,103600.0,0.521453]
[1750439584770,0.44832488,103610.0,103600.0,0.521453]
[1750439584972,0.44218218,103610.0,103600.0,0.91897069]
[1750439585173,0.38502488,103610.0,103600.0,0.91897069]
[1750439585472,0.38502488,103610.0,103600.0,0.98277069]
[1750439585874,0.38502488,103610.0,103600.0,0.91897069]
[1750439586065,0.44219422,103610.0,103600.0,0.91897069]
[1750439587578,0.44219422,103610.0,103600.0,0.521453]
[1750439587878,0.44219422,103610.0,103600.0,0.378333]
[1750439588077,0.90311191,103610.0,103600.0,0.456553]
[1750439588280,1.26391191,103610.0,103600.0,0.456553]
[1750439588581,0.90311191,103610.0,103600.0,0.456553]
[1750439588974,0.90311191,103610.0,103600.0,0.313433]
[1750439589978,0.50559422,103610.0,103600.0,0.736533]
[1750439590682,0.50559422,103610.0,103600.0,0.879653]
[1750439591082,0.44219422,103610.0,103600.0,0.879653]
[1750439591477,0.44219422,103610.0,103600.0,1.27717069]
[1750439592284,0.44019422,103610.0,103600.0,1.27717069]
[1750439592479,1.19851191,103610.0,103600.0,0.1204]
[1750439592679,0.1930305,103600.0,103590.0,0.241307]
[1750439592979,1.39311488,103600.0,103590.0,0.251307]
[1750439593177,1.39311488,103600.0,103590.0,0.315607]
[1750439593877,1.79063257,103600.0,103590.0,0.317607]
[1750439594279,2.15143257,103600.0,103590.0,0.0763]
[1750439594482,2.15143257,103600.0,103590.0,0.012]
[1750439594685,1.5631945,103600.0,103590.0,1e-07]
[1750439594881,2.1802345,103600.0,103590.0,1e-07]
[1750439595180,2.98435429,103600.0,103560.0,0.78756383]
[1750439595383,0.04672725,103570.0,103560.0,1.33135983]
[1750439595583,0.39428171,103570.0,103560.0,1.3220431]
[1750439596380,0.39428171,103570.0,103560.0,1.1795231]
[1750439596586,0.39428171,103570.0,103560.0,1.2463231]
[1750439596782,0.39428171,103570.0,103560.0,0.8416]
[1750439596783,0.7917994,103570.0,103560.0,0.8416]
[1750439596982,0.7917994,103570.0,103560.0,0.9726058]
[1750439597180,0.8580994,103570.0,103560.0,0.9722058]
[1750439597376,0.8580994,103570.0,103560.0,0.7821]
[1750439597586,0.8580994,103570.0,103560.0,0.7825]
[1750439597881,0.8580994,103570.0,103560.0,0.7795]
[1750439598190,0.8673133,103570.0,103560.0,0.7178]
[1750439598376,0.46058171,103570.0,103560.0,0.9113058]
[1750439598581,0.8580994,103570.0,103560.0,0.9083058]
[1750439598780,0.8580994,103570.0,103560.0,0.9701058]
[1750439598981,0.8580994,103570.0,103560.0,0.777]
[1750439599176,0.8580994,103570.0,103560.0,0.775]
[1750439599685,0.8580994,103570.0,103560.0,0.4142]
[1750439600586,0.93691231,103570.0,103560.0,0.4142]
[1750439601186,1.29771231,103570.0,103560.0,0.4142]
[1750439601480,1.29771231,103570.0,103560.0,0.3655058]
[1750439601687,1.30664775,103570.0,103560.0,0.3655058]
[1750439601882,0.90913006,103570.0,103560.0,0.4318058]
[1750439602782,0.54833006,103570.0,103560.0,0.4318058]
[1750439602981,0.94584775,103570.0,103560.0,0.5332]
[1750439603586,1.30664775,103570.0,103560.0,0.1724]
[1750439603787,1.49124288,103570.0,103560.0,0.1724]
[1750439603988,1.45124288,103570.0,103560.0,0.0024]
[1750439604191,1.45124288,103570.0,103560.0,0.002]
[1750439604493,1.45124288,103570.0,103560.0,0.0024]
[1750439604685,1.45124288,103570.0,103560.0,0.002]
[1750439605087,1.45124288,103570.0,103560.0,0.0024]
[1750439605287,1.8892799,103570.0,103560.0,0.0024]
[1750439605486,1.6961679,103570.0,103560.0,0.0024]
[1750439605686,1.63420288,103570.0,103560.0,0.002]
[1750439605988,1.63420288,103570.0,103560.0,0.0024]
[1750439606484,1.69650288,103570.0,103560.0,0.0014]
[1750439606684,1.69750288,103570.0,103560.0,0.0014]
[1750439609488,1.55454288,103570.0,103560.0,0.0014]
[1750439609694,2.30450288,103570.0,103560.0,0.0014]
[1750439609995,2.26450288,103570.0,103560.0,0.0014]
[1750439610198,0.74728975,103570.0,103560.0,0.59202369]
[1750439610389,1.28798975,103570.0,103560.0,1.00282369]
[1750439610696,1.68550744,103570.0,103560.0,0.1187]
[1750439610896,1.75000744,103570.0,103560.0,0.1187]
[1750439611292,1.75000744,103570.0,103560.0,0.0014]
[1750439611490,1.75000744,103570.0,103560.0,0.194506]
[1750439611693,1.36158488,103570.0,103560.0,0.194106]
[1750439611889,1.75910257,103570.0,103560.0,0.194506]
[1750439612311,1.15210257,103570.0,103560.0,0.194506]
[1750439612495,1.75910257,103570.0,103560.0,0.261406]
[1750439612997,1.75906257,103570.0,103560.0,0.261406]
[1750439613196,1.74996744,103570.0,103560.0,0.261406]
[1750439613402,1.74996744,103570.0,103560.0,0.622206]
[1750439614094,1.74996744,103570.0,103560.0,0.0683]
[1750439614291,1.74996744,103570.0,103560.0,0.001]
[1750439614492,1.74996744,103570.0,103560.0,0.0014]
[1750439614697,2.11076744,103570.0,103560.0,0.0014]
[1750439616200,1.74996744,103570.0,103560.0,0.0014]
[1750439616394,1.81647443,103570.0,103560.0,0.0014]
[1750439617995,1.20951443,103570.0,103560.0,0.0014]
[1750439618192,1.81643443,103570.0,103560.0,0.0014]
[1750439618903,1.81643443,103570.0,103560.0,0.1945059]
[1750439619102,1.81643443,103570.0,103560.0,0.2601059]
[1750439619402,1.20951443,103570.0,103560.0,0.2601059]
[1750439619609,1.81643443,103570.0,103560.0,0.2601059]
[1750439619995,1.81639443,103570.0,103560.0,0.2601059]
[1750439620903,1.34506775,103570.0,103560.0,1.26842359]
[1750439621101,0.29143817,103570.0,103560.0,1.33422359]
[1750439621299,0.15546726,103570.0,103560.0,2.17485328]
[1750439621598,0.2502079,103590.0,103580.0,0.1930686]
[1750439621902,0.2930499,103590.0,103580.0,1.17354017]
[1750439622100,0.2930499,103590.0,103580.0,1.23934017]
[1750439622300,0.2930499,103590.0,103580.0,1.53014017]
[1750439622301,0.1,103590.0,103580.0,1.53014017]
[1750439622505,0.1,103590.0,103580.0,1.88014017]
[1750439622703,0.105,103590.0,103580.0,1.88014017]
[1750439623803,0.105,103590.0,103580.0,2.72073786]
[1750439624107,0.107,103590.0,103580.0,2.72073786]
[1750439624790,0.107,103590.0,103580.0,2.84973786]
[1750439624991,0.105,103590.0,103580.0,2.85373786]
[1750439625993,0.1,103590.0,103580.0,2.85673786]
[1750439627904,0.1,103590.0,103580.0,1.87314017]
[1750439628106,0.1,103590.0,103580.0,2.62254017]
[1750439631705,0.1,103590.0,103580.0,3.06562017]
[1750439632206,0.1,103590.0,103580.0,2.81562017]
[1750439632700,0.1,103590.0,103580.0,2.06622017]
[1750439632902,0.1,103590.0,103580.0,2.62238017]
[1750439633409,0.12482345,103590.0,103580.0,2.62238017]
[1750439633609,0.12482345,103590.0,103580.0,1.87314017]
[1750439633915,0.3646007,103590.0,103580.0,2.22486248]
[1750439634210,0.31787345,103590.0,103580.0,2.62278017]
[1750439636016,0.3646007,103590.0,103580.0,2.15592248]
[1750439636316,0.4301007,103590.0,103580.0,1.2151286]
[1750439636513,0.4929007,103590.0,103580.0,0.4939286]
[1750439637304,0.4929007,103590.0,103580.0,0.4919286]
[1750439637504,0.4929007,103590.0,103580.0,0.7890286]
[1750439637701,0.4939007,103590.0,103580.0,0.7876286]
[1750439637913,0.4939007,103590.0,103580.0,0.7880286]
[1750439638911,0.4939007,103590.0,103580.0,1.18554629]
[1750439640313,0.4939007,103590.0,103580.0,0.82474629]
[1750439640516,0.4939007,103590.0,103580.0,1.18554629]
[1750439641605,0.4939007,103590.0,103580.0,0.7880286]
[1750439641809,0.89141839,103590.0,103580.0,0.7880286]
[1750439642910,0.89141839,103590.0,103580.0,0.4272286]
[1750439643112,0.89141839,103590.0,103580.0,0.7880286]
[1750439644315,0.4939007,103590.0,103580.0,0.7880286]
[1750439645416,0.84469114,103590.0,103580.0,0.6452686]
[1750439645612,0.89141839,103590.0,103580.0,0.6452686]
[1750439646019,0.89141839,103590.0,103580.0,0.2844686]
[1750439647623,0.90065393,103590.0,103580.0,0.2844686]
[1750439649120,1.04597721,103590.0,103580.0,0.2844686]
[1750439649421,0.64845952,103590.0,103580.0,0.2844686]
[1750439649722,1.04597721,103590.0,103580.0,0.2844686]
[1750439650118,1.03674167,103590.0,103580.0,0.2844686]
[1750439650324,1.64290167,103590.0,103580.0,0.2840686]
[1750439650515,1.70005967,103590.0,103580.0,0.2840686]
[1750439651018,1.70005967,103590.0,103580.0,0.2844686]
[1750439651226,1.70917082,103590.0,103580.0,0.2844686]
[1750439651620,1.65201282,103590.0,103580.0,0.2844686]
[1750439651825,1.24538398,103590.0,103580.0,0.6452686]
[1750439652027,0.63922398,103590.0,103580.0,1.04278629]
[1750439652225,1.24542398,103590.0,103580.0,1.04278629]
[1750439652426,1.24542398,103590.0,103580.0,0.6452686]
[1750439653626,1.64294167,103590.0,103580.0,0.6452686]
[1750439653828,1.70009967,103590.0,103580.0,0.6452686]
[1750439654432,1.70009967,103590.0,103580.0,0.2844686]
[1750439654729,1.70009967,103590.0,103580.0,0.6452686]
[1750439655030,1.70944354,103590.0,103580.0,0.6452686]
[1750439655924,1.70009967,103590.0,103580.0,0.2844686]
[1750439656332,2.06089967,103590.0,103580.0,0.2840686]
[1750439656632,2.06089967,103590.0,103580.0,0.0914]
[1750439656830,2.07011806,103590.0,103580.0,0.1944687]
[1750439660246,2.07011806,103590.0,103580.0,0.0014]
[1750439661043,2.07011806,103590.0,103580.0,0.1944687]
[1750439663047,2.07011806,103590.0,103580.0,0.0014]
[1750439663548,2.01296006,103590.0,103580.0,0.0014]
[1750439664443,2.07017546,103590.0,103580.0,0.0014]
[1750439664650,2.01296006,103590.0,103580.0,0.0014]
[1750439664951,2.41047775,103590.0,103580.0,0.0014]
[1750439665144,2.48668796,103590.0,103580.0,0.001]
[1750439665543,1.88048796,103590.0,103580.0,0.0014]
[1750439665743,2.48640796,103590.0,103580.0,0.0014]
[1750439666952,2.59640796,103590.0,103580.0,0.0014]
[1750439667148,2.60640796,103590.0,103580.0,0.001]
[1750439667446,0.1930874,103570.0,103560.0,0.14336]
[1750439667653,1.4652861,103570.0,103560.0,0.27336]
[1750439667947,1.68161805,103570.0,103560.0,0.27336]
[1750439668145,1.68161805,103570.0,103560.0,0.1308]
[1750439668551,1.68161805,103570.0,103560.0,0.0048]
[1750439668855,1.68261805,103570.0,103560.0,0.0048]
[1750439669243,2.04341805,103570.0,103560.0,0.0048]
[1750439670152,2.04341805,103570.0,103560.0,0.004]
[1750439670357,0.193106,103560.0,103550.0,0.71513527]
[1750439670558,1.04465083,103560.0,103550.0,0.91513527]
[1750439671554,1.04465083,103560.0,103550.0,0.91913527]
[1750439672350,1.25301314,103560.0,103550.0,1.31665296]
[1750439672661,0.76066345,103560.0,103550.0,1.38355296]
[1750439672960,0.15482345,103560.0,103550.0,1.82668896]
[1750439673349,0.34792945,103560.0,103550.0,0.98603527]
[1750439673551,0.34792945,103560.0,103550.0,1.52611296]
[1750439673953,0.34792945,103560.0,103550.0,1.52651296]
[1750439674959,0.15482345,103560.0,103550.0,1.52651296]
[1750439675963,0.34792955,103560.0,103550.0,1.52651296]
[1750439678359,0.15482345,103560.0,103550.0,1.52651296]
[1750439679763,1.13239394,103570.0,103560.0,0.193106]
[1750439680059,0.51831804,103570.0,103560.0,1.08562369]
[1750439680260,1.01212444,103570.0,103560.0,1.08562369]
[1750439681255,1.07030088,103570.0,103560.0,1.08562369]
[1750439681658,1.07030088,103570.0,103560.0,1.09562369]
[1750439681857,1.13360088,103570.0,103560.0,1.09562369]
[1750439682059,1.01312444,103570.0,103560.0,1.09562369]
[1750439682860,1.07030088,103570.0,103560.0,1.09562369]
[1750439683058,1.01312444,103570.0,103560.0,1.16152369]
[1750439683261,1.07030088,103570.0,103560.0,1.16152369]
[1750439685061,1.07030088,103570.0,103560.0,1.09562369]
[1750439685261,1.46781857,103570.0,103560.0,1.09562369]
[1750439685458,1.13780088,103570.0,103560.0,1.09562369]
[1750439685764,1.60131857,103570.0,103560.0,1.09562369]
[1750439686260,1.54414213,103570.0,103560.0,0.698106]
[1750439686862,1.14662444,103570.0,103560.0,0.698106]
[1750439687459,1.14662444,103570.0,103560.0,0.631106]
[1750439688361,1.54414213,103570.0,103560.0,0.631106]
[1750439689267,0.93458225,103570.0,103560.0,1.02862369]
[1750439689469,0.041,103570.0,103560.0,1.09522369]
[1750439689675,0.041,103570.0,103560.0,1.43522369]
[1750439690558,0.25024194,103590.0,103570.0,0.1930873]
[1750439690759,0.19717644,103590.0,103580.0,1.16006639]
[1750439690963,0.14,103590.0,103580.0,1.57666639]
[1750439691763,0.16474021,103590.0,103580.0,1.57666639]
[1750439692359,0.16474021,103590.0,103580.0,1.57766639]
[1750439692955,0.16474021,103590.0,103580.0,2.06624639]
[1750439693157,0.16474021,103590.0,103580.0,2.46376408]
[1750439693463,0.16474021,103590.0,103580.0,2.06924639]
[1750439693861,0.16474021,103590.0,103580.0,2.13144639]
[1750439694065,0.16474021,103590.0,103580.0,2.13444639]
[1750439695758,0.16474021,103590.0,103580.0,1.99216639]
[1750439695970,0.16474021,103590.0,103580.0,2.73976639]
[1750439696162,0.16474021,103590.0,103580.0,2.54668639]
[1750439696565,0.16474021,103590.0,103580.0,1.79908639]
[1750439696869,0.16474021,103590.0,103580.0,2.54560639]
[1750439697166,0.16474021,103590.0,103580.0,1.94036639]
[1750439697863,0.16474021,103590.0,103580.0,1.93736639]
[1750439698063,0.16474021,103590.0,103580.0,1.64186639]
[1750439700462,0.35779021,103590.0,103580.0,1.64186639]
[1750439700770,0.42099021,103590.0,103580.0,1.64186639]
[1750439700966,0.46771746,103590.0,103580.0,0.7547487]
[1750439701167,0.99613515,103590.0,103580.0,0.05875919]
[1750439701472,2.5041553,103590.0,103580.0,0.0034]
[1750439701672,2.5041553,103590.0,103580.0,0.003]
[1750439701673,2.56133174,103590.0,103580.0,0.003]
[1750439701868,2.35689405,103590.0,103580.0,0.0034]
[1750439702072,0.1930686,103580.0,103570.0,0.14228]
[1750439702264,1.29365375,103580.0,103570.0,0.07]
[1750439702466,0.1930873,103570.0,103560.0,0.698719]
[1750439702761,0.1930873,103570.0,103560.0,0.7804433]
[1750439702762,1.53635245,103570.0,103560.0,0.7804433]
[1750439702967,1.53635245,103570.0,103560.0,0.7808433]
[1750439704075,1.61328859,103570.0,103560.0,0.7808433]
[1750439704461,1.97408859,103570.0,103560.0,0.4200433]
[1750439704773,1.97508859,103570.0,103560.0,0.4200433]
[1750439705275,2.04018859,103570.0,103560.0,0.4196433]
[1750439705478,2.04018859,103570.0,103560.0,0.4200433]
[1750439705779,1.67938859,103570.0,103560.0,0.4200433]
[1750439706171,1.2818709,103570.0,103560.0,0.81756099]
[1750439706468,1.2818709,103570.0,103560.0,1.17836099]
[1750439706667,1.2818709,103570.0,103560.0,0.81756099]
[1750439706867,1.2818709,103570.0,103560.0,1.17836099]
[1750439707366,0.6767909,103570.0,103560.0,1.17836099]
[1750439707563,1.2818709,103570.0,103560.0,1.17836099]
[1750439708967,1.2818709,103570.0,103560.0,0.1304]
[1750439709170,1.67938859,103570.0,103560.0,0.4912]
[1750439709470,1.82387724,103570.0,103560.0,0.1304]
[1750439709774,2.24185368,103570.0,103560.0,0.13]
[1750439710073,2.24185368,103570.0,103560.0,0.1304]
[1750439710074,1.88105368,103570.0,103560.0,0.1304]
[1750439710464,2.24185368,103570.0,103560.0,0.1304]
[1750439710869,1.88105368,103570.0,103560.0,0.1304]
[1750439711069,1.88305368,103570.0,103560.0,0.1304]
[1750439711575,2.24585368,103570.0,103560.0,0.1304]
[1750439712175,2.2551324,103570.0,103560.0,0.1304]
[1750439712771,1.8943324,103570.0,103560.0,0.0004]
[1750439712969,1.8943324,103570.0,103560.0,0.193506]
[1750439712970,1.48745599,103570.0,103560.0,0.193506]
[1750439713172,1.43027955,103570.0,103560.0,0.554306]
[1750439713974,1.43027955,103570.0,103560.0,0.193506]
[1750439714468,1.43031955,103570.0,103560.0,0.57018249]
[1750439714669,1.92750793,103570.0,103560.0,0.57018249]
[1750439714870,1.73442063,103570.0,103560.0,0.20938249]
[1750439715076,1.92750793,103570.0,103560.0,0.20938249]
[1750439715477,1.43970363,103570.0,103560.0,0.20938249]
[1750439715681,1.93689201,103570.0,103560.0,0.20938249]
[1750439716374,1.92750793,103570.0,103560.0,0.57018249]
[1750439717280,1.92733274,103570.0,103560.0,0.57018249]
[1750439717488,1.37946918,103570.0,103560.0,0.57018249]
[1750439717689,1.92725274,103570.0,103560.0,0.57018249]
[1750439718368,1.98442918,103570.0,103560.0,0.57018249]
[1750439718571,1.92725274,103570.0,103560.0,0.57018249]
[1750439718781,1.92725274,103570.0,103560.0,0.20938249]
[1750439718988,1.98442918,103570.0,103560.0,0.57018249]
[1750439719186,1.92725274,103570.0,103560.0,0.57018249]
[1750439719391,1.92725274,103570.0,103560.0,0.20938249]
[1750439720279,1.92725274,103570.0,103560.0,0.57018249]
[1750439720478,1.92725274,103570.0,103560.0,0.20938249]
[1750439720676,1.92725274,103570.0,103560.0,0.20898249]
[1750439721179,1.92725274,103570.0,103560.0,0.20938249]
[1750439722389,1.92725274,103570.0,103560.0,0.193506]
[1750439722784,1.98442918,103570.0,103560.0,0.193506]
[1750439723287,1.43006436,103570.0,103560.0,0.193506]
[1750439723586,1.49635209,103570.0,103560.0,0.193506]
[1750439725085,1.99354047,103570.0,103560.0,0.193506]
[1750439726083,1.98442918,103570.0,103560.0,0.193506]
[1750439726788,1.92725274,103570.0,103560.0,0.193506]
[1750439727680,1.98442918,103570.0,103560.0,0.193506]
[1750439728987,1.98442918,103570.0,103560.0,0.203506]
[1750439730191,1.98442918,103570.0,103560.0,0.193506]
[1750439733294,1.98442918,103570.0,103560.0,0.0004]
[1750439733601,1.98442918,103570.0,103560.0,0.193506]
[1750439734690,1.98442918,103570.0,103560.0,0.0004]
[1750439734893,2.24582892,103570.0,103560.0,0.0004]
[1750439735296,0.193106,103560.0,103550.0,0.29063617]
[1750439735599,0.97797516,103560.0,103550.0,0.42063617]
[1750439736295,0.97797516,103560.0,103550.0,0.78143617]
[1750439736799,0.97897516,103560.0,103550.0,0.78143617]
[1750439737098,0.58118704,103560.0,103550.0,0.78143617]
[1750439737397,0.58118704,103560.0,103550.0,1.30042429]
[1750439737892,0.58118704,103560.0,103550.0,1.24242429]
[1750439738099,0.58118704,103560.0,103550.0,0.84463617]
[1750439741309,0.04039034,103570.0,103560.0,0.193106]
[1750439741595,0.1602,103600.0,103590.0,0.1930501]
[1750439741797,0.1602,103600.0,103590.0,1.48153822]
[1750439741798,0.3432314,103600.0,103590.0,1.48153822]
[1750439741995,0.09,103600.0,103590.0,1.48153822]
[1750439742192,0.2830315,103600.0,103590.0,1.48153822]
[1750439742388,0.09,103600.0,103590.0,1.48153822]
[1750439742791,0.097,103600.0,103590.0,1.0837501]
[1750439742992,0.097,103600.0,103590.0,1.1418501]
[1750439743193,0.2900315,103600.0,103590.0,1.1418501]
[1750439743395,0.2830315,103600.0,103590.0,1.0837501]
[1750439743589,0.77976978,103600.0,103590.0,1.0847501]
[1750439743794,0.2830315,103600.0,103590.0,1.0851501]
[1750439744202,0.2830315,103600.0,103590.0,1.0861501]
[1750439744405,0.3458315,103600.0,103590.0,1.0861501]
[1750439744805,0.3458315,103600.0,103590.0,1.0851501]
[1750439745308,0.4092315,103600.0,103590.0,1.0841501]
[1750439746206,0.2830315,103600.0,103590.0,1.0841501]
[1750439746395,0.09,103600.0,103590.0,1.65907342]
[1750439746601,0.2830313,103600.0,103590.0,1.22583514]
[1750439746797,0.09,103600.0,103590.0,1.72257342]
[1750439746999,0.09,103600.0,103590.0,2.32757342]
[1750439748309,0.09,103600.0,103590.0,2.27757342]
[1750439748503,0.09,103600.0,103590.0,2.63757342]
[1750439750702,0.2830315,103600.0,103590.0,1.53583514]
[1750439750905,0.2830315,103600.0,103590.0,2.02459514]
[1750439751204,0.2830315,103600.0,103590.0,2.02419514]
[1750439751400,0.3406315,103600.0,103590.0,2.02459514]
[1750439751705,0.3406315,103600.0,103590.0,2.02419514]
[1750439751899,0.3406315,103600.0,103590.0,2.02459514]
[1750439752705,0.2830315,103600.0,103590.0,2.52133342]
[1750439752911,0.09,103600.0,103590.0,2.52133342]
[1750439753300,0.11416048,103600.0,103590.0,2.52133342]
[1750439753913,0.11416048,103600.0,103590.0,2.52233342]
[1750439754610,0.11416048,103600.0,103590.0,2.52433342]
[1750439754809,0.30719188,103600.0,103590.0,2.52433342]
[1750439755108,0.30719188,103600.0,103590.0,2.52233342]
[1750439755407,0.30719188,103600.0,103590.0,2.52433342]
[1750439755599,0.30719188,103600.0,103590.0,2.02759514]
[1750439755905,0.30719188,103600.0,103590.0,0.63573504]
[1750439756111,0.30719188,103600.0,103590.0,0.49373504]
[1750439756297,1.91552431,103600.0,103590.0,0.003]
[1750439756607,2.03282431,103600.0,103590.0,0.19545]
[1750439756800,2.03282431,103600.0,103590.0,0.19505]
[1750439757000,2.03282431,103600.0,103590.0,0.19545]
[1750439757707,2.03282431,103600.0,103590.0,0.19345]
[1750439757909,1.53608603,103600.0,103590.0,0.19345]
[1750439758111,1.53908603,103600.0,103590.0,0.19345]
[1750439758312,1.54308603,103600.0,103590.0,0.19345]
[1750439758614,2.03982431,103600.0,103590.0,0.19345]
[1750439758997,2.03982431,103600.0,103590.0,0.0004]
[1750439759299,2.03982431,103600.0,103590.0,0.19345]
[1750439759493,1.67902431,103600.0,103590.0,0.19345]
[1750439759698,1.18228603,103600.0,103590.0,0.19345]
[1750439760105,1.18192603,103600.0,103590.0,0.19345]
[1750439760404,1.18192603,103600.0,103590.0,0.25175]
[1750439761208,1.23885925,103600.0,103590.0,0.25175]
[1750439761509,1.12135925,103600.0,103590.0,0.61255]
[1750439761810,1.06442603,103600.0,103590.0,0.66935]
[1750439762604,1.12111925,103600.0,103590.0,0.30855]
[1750439763011,1.24091925,103600.0,103590.0,0.30855]
[1750439763511,1.60171925,103600.0,103590.0,0.30855]
[1750439763709,2.09845753,103600.0,103590.0,0.0004]
[1750439764111,2.59519581,103600.0,103590.0,0.0004]
[1750439764310,0.19305,103590.0,103580.0,0.3608]
[1750439764615,1.17123831,103590.0,103580.0,0.3608]
[1750439765005,1.17123831,103590.0,103580.0,0.3612]
[1750439765203,0.1930686,103580.0,103570.0,0.4316196]
[1750439765407,1.49385261,103580.0,103570.0,0.2896196]
[1750439765606,1.63801561,103580.0,103570.0,0.2896196]
[1750439765809,0.1930875,103570.0,103560.0,0.47941066]
[1750439766010,0.40764798,103570.0,103560.0,0.75941066]
[1750439766204,0.40764798,103570.0,103560.0,0.58643516]
[1750439766410,0.52751151,103570.0,103560.0,0.58643516]
[1750439766610,1.24683364,103570.0,103560.0,0.53815966]
[1750439766810,1.60763364,103570.0,103560.0,0.48910066]
[1750439767009,1.55067011,103570.0,103560.0,0.20950066]
[1750439767207,1.55067011,103570.0,103560.0,0.21010066]
[1750439767412,1.60757011,103570.0,103560.0,0.21050066]
[1750439767910,1.35663183,103570.0,103560.0,0.5553061]
[1750439768116,1.35663183,103570.0,103560.0,0.1945061]
[1750439768509,1.35663183,103570.0,103560.0,0.5553061]
[1750439768714,1.35663183,103570.0,103560.0,0.1935061]
[1750439768914,1.35863183,103570.0,103560.0,0.0004]
[1750439769114,1.35863183,103570.0,103560.0,0.1935061]
[1750439769115,1.36063183,103570.0,103560.0,0.1935061]
[1750439769417,1.73087304,103570.0,103560.0,0.0004]
[1750439770010,1.73087304,103570.0,103560.0,0.1935061]
[1750439770210,2.22761132,103570.0,103560.0,0.0004]
[1750439770404,2.30382153,103570.0,103560.0,0.0004]
[1750439770609,2.22761132,103570.0,103560.0,0.0004]
[1750439770904,0.1931061,103560.0,103550.0,0.19489037]
[1750439771106,1.02506686,103560.0,103550.0,0.19489037]
[1750439771304,1.02506686,103560.0,103550.0,0.19409037]
[1750439771305,1.17033966,103560.0,103550.0,0.19409037]
[1750439771518,1.17033966,103560.0,103550.0,0.19449037]
[1750439771717,0.67360138,103560.0,103550.0,0.19449037]
[1750439772313,1.03440138,103560.0,103550.0,0.00136567]
[1750439772520,1.53113966,103560.0,103550.0,0.00136567]
[1750439772819,1.53113966,103560.0,103550.0,0.00096567]
[1750439773020,1.53113966,103560.0,103550.0,0.19449037]
[1750439773321,1.53113966,103560.0,103550.0,0.19409037]
[1750439773621,1.53113966,103560.0,103550.0,0.19449037]
[1750439775709,2.13649966,103560.0,103550.0,0.19449037]
[1750439776626,2.07953766,103560.0,103550.0,0.19449037]
[1750439777826,2.07953766,103560.0,103550.0,0.00136567]
[1750439778023,2.07953766,103560.0,103550.0,0.19449037]
[1750439780025,1.47417766,103560.0,103550.0,0.19449037]